bitfinex-derivatives/quotes_SOLF0:USTF0_20251201
["timestamp","ask_amount","ask_price","bid_price","bid_amount"]
[1764598762897,7.1415,126.05,126.03,3.33933951]
[1764598765298,7.1418,126.04,126.03,0.05933951]
[1764598766790,7.1418,126.04,126.03,3.33933951]
[1764598766987,0.05849399,126.06,126.03,3.33933951]
[1764598767407,111.0183,126.13,126.04,3.28]
[1764598767591,111.0183,126.13,126.06,3.28]
[1764598767790,7.1393,126.09,126.06,3.28]
[1764598768503,7.19463242,126.09,126.06,3.33416642]
[1764598772501,0.05533242,126.09,126.06,3.33416642]
[1764598772997,7.137,126.13,126.07,3.31]
[1764598773388,4.72229672,126.16,126.07,3.31]
[1764598773592,7.50490993,126.16,126.09,3.31]
[1764598774101,7.18644531,126.14,126.11,0.06025061]
[1764598774903,0.04994531,126.14,126.11,3.37025061]
[1764598777502,7.18614531,126.14,126.11,3.37025061]
[1764598778007,0.04994531,126.14,126.11,3.37025061]
[1764598779709,115.78194203,126.14,126.11,0.06025061]
[1764598779910,4.72229672,126.12,126.11,0.06025061]
[1764598780410,4.72229672,126.13,126.11,0.06025061]
[1764598780709,4.72229672,126.13,126.07,3.31]
[1764598780908,7.46547503,126.13,126.07,3.31]
[1764598781304,7.46907696,126.13,126.07,3.31]
[1764598781699,0.05645552,126.11,126.09,0.05684971]
[1764598782409,7.19455552,126.11,126.09,0.05684971]
[1764598783109,11.91685224,126.11,126.09,0.05684971]
[1764598783513,11.91685224,126.11,126.04,3.31]
[1764598783514,7.1393,126.09,126.04,3.31]
[1764598783810,11.86159672,126.09,126.04,3.31]
[1764598784512,0.05341268,126.08,126.05,3.36403847]
[1764598786012,11.9156094,126.08,126.05,0.05403847]
[1764598786615,7.1401,126.07,126.05,0.05403847]
[1764598787119,7.1401,126.07,126.05,3.36403847]
[1764598788607,0.05341268,126.08,126.05,3.36403847]
[1764598792109,0.05341268,126.08,126.05,0.05403847]
[1764598792510,0.05341268,126.08,126.05,3.38403847]
[1764598793409,7.1401,126.07,126.05,3.38403847]
[1764598794113,7.1406,126.06,126.05,3.38403847]
[1764598794315,7.1406,126.06,126.05,0.05403847]
[1764598795810,14.66608151,126.08,126.05,3.38403847]
[1764598796123,7.19341268,126.08,126.05,3.38403847]
[1764598796817,0.05341268,126.08,126.05,3.38403847]
[1764598798118,0.05341268,126.08,126.06,3.33]
[1764598799218,7.138,126.11,126.07,3.33]
[1764598799722,7.1372,126.13,126.07,3.33]
[1764598799916,7.1372,126.13,126.08,3.33]
[1764598800422,0.05023828,126.12,126.1,3.33]
[1764598801116,0.05023828,126.12,126.09,0.05559588]
[1764598801519,4.772535,126.12,126.09,0.05559588]
[1764598801722,7.40090279,126.12,126.09,0.05559588]
[1764598804219,4.772535,126.12,126.09,0.05559588]
[1764598804424,7.1384,126.1,126.09,0.05559588]
[1764598804825,7.1384,126.1,126.09,3.38559588]
[1764598805020,7.18793828,126.12,126.09,3.38559588]
[1764598805422,7.18793828,126.12,126.09,0.05559588]
[1764598806221,0.05023828,126.12,126.09,3.38559588]
[1764598809224,0.05023828,126.12,126.09,10.52449588]
[1764598809425,0.05023828,126.12,126.1,3.33]
[1764598814031,4.72229672,126.18,126.1,3.33]
[1764598815233,0.05038154,126.15,126.13,3.3889203]
[1764598820649,0.05038154,126.15,126.13,3.28076661]
[1764598821539,0.05038154,126.15,126.13,3.33108836]
[1764598826853,10.20311332,126.15,126.13,0.05032175]
[1764598827051,3.06721332,126.15,126.13,0.05032175]
[1764598828349,7.18598154,126.15,126.13,3.25032175]
[1764598830450,0.00038154,126.15,126.13,3.25032175]
[1764598830754,10.12271312,126.16,126.13,3.25032175]
[1764598831155,7.1357,126.15,126.13,3.25032175]
[1764598831658,7.18921565,126.15,126.13,3.25032175]
[1764598833259,0.05351565,126.15,126.13,3.25032175]
[1764598836159,3.01683178,126.18,126.13,3.25032175]
[1764598836160,1.37961109,126.2,126.14,3.2]
[1764598836356,138.2125,126.23,126.13,3.06715353]
[1764598836357,30.29683178,126.23,126.16,3.2]
[1764598836955,7.1327,126.21,126.16,3.2]
[1764598837164,0.05611142,126.2,126.18,3.2]
[1764598837765,7.131,126.23,126.18,3.2]
[1764598838666,3.01683178,126.25,126.18,3.2]
[1764598838866,0.0586743,126.23,126.2,3.26028257]
[1764598840059,3.07550608,126.23,126.2,3.26028257]
[1764598840964,3.07550608,126.23,126.2,0.06028257]
[1764598842471,3.01683178,126.21,126.2,0.06028257]
[1764598843372,0.0586743,126.23,126.2,3.26028257]
[1764598843373,7.1898743,126.23,126.2,3.26028257]
[1764598843664,7.1898743,126.23,126.2,0.06028257]
[1764598844573,137.75093178,126.22,126.15,3.2]
[1764598844772,3.01683178,126.21,126.15,3.2]
[1764598844965,110.9441,126.22,126.15,3.2]
[1764598845166,3.01683178,126.21,126.15,3.2]
[1764598845571,0.05887509,126.19,126.17,0.05835448]
[1764598845774,0.05887509,126.19,126.17,3.25835448]
[1764598846569,7.19257509,126.19,126.17,3.25835448]
[1764598847972,7.19257509,126.19,126.17,0.05835448]
[1764598849473,7.1338,126.18,126.17,0.05835448]
[1764598850063,114.04290687,126.19,126.12,3.08]
[1764598850269,3.01683178,126.16,126.12,3.08]
[1764598851167,3.01683178,126.16,126.1,10.39683763]
[1764598851168,0.05790959,126.15,126.13,3.13887272]
[1764598854479,0.05790959,126.15,126.13,0.05887272]
[1764598856480,7.19350959,126.15,126.13,0.05887272]
[1764598857681,3.01683178,126.14,126.13,0.05887272]
[1764598859379,10.21034137,126.15,126.13,0.05887272]
[1764598859578,7.1361,126.14,126.13,0.05887272]
[1764598860981,111.0407,126.11,126.04,10.46000585]
[1764598861285,3.01683178,126.08,126.05,3.08]
[1764598861580,3.01683178,126.1,126.05,3.08]
[1764598861879,0.0593638,126.09,126.06,3.13420903]
[1764598863687,3.01683178,126.08,126.06,0.05420903]
[1764598864278,7.1401,126.07,126.06,0.05420903]
[1764598873887,7.1988638,126.09,126.06,3.13420903]
[1764598874282,7.1395,126.08,126.06,3.13420903]
[1764598874586,3.01683178,126.08,126.06,0.05420903]
[1764598874987,7.1401,126.07,126.06,0.05420903]
[1764598877792,7.1401,126.07,126.06,3.13420903]
[1764598878389,7.1395,126.08,126.06,3.13420903]
[1764598879898,7.1983638,126.09,126.06,3.13420903]
[1764598884304,0.0593638,126.09,126.06,3.13420903]
[1764598887695,0.0593638,126.09,126.06,0.05420903]
[1764598887900,7.1401,126.07,126.06,0.05420903]
[1764598889288,7.1401,126.07,126.06,3.36420903]
[1764598889495,7.1985638,126.09,126.06,3.36420903]
[1764598890300,0.0593638,126.09,126.06,3.36420903]
[1764598891201,7.1984638,126.09,126.06,3.36420903]
[1764598891798,0.0593638,126.09,126.06,3.36420903]
[1764598894204,7.1984638,126.09,126.06,3.36420903]
[1764598894414,0.0593638,126.09,126.06,3.36420903]
[1764598894705,7.1372,126.13,126.07,3.31]
[1764598894902,2.72879733,126.15,126.07,3.31]
[1764598895504,0.05991328,126.12,126.1,0.06041872]
[1764598896510,7.19721328,126.12,126.1,0.06041872]
[1764598897003,0.05991328,126.12,126.1,3.37041872]
[1764598910009,7.1358,126.15,126.11,3.14]
[1764598910215,4.71867559,126.19,126.11,3.14]
[1764598910516,7.45554005,126.19,126.11,3.14]
[1764598911201,7.19583607,126.16,126.14,3.19753148]
[1764598913518,7.1355,126.15,126.14,0.05753148]
[1764598913916,0.06083607,126.16,126.14,0.05753148]
[1764598914210,7.19633607,126.16,126.14,0.05753148]
[1764598915315,7.1355,126.15,126.14,0.05753148]
[1764598915514,0.06083607,126.16,126.14,0.05753148]
[1764598915714,7.19623607,126.16,126.14,0.05753148]
[1764598916218,7.1355,126.15,126.14,0.05753148]
[1764598918522,0.06083607,126.16,126.14,0.05753148]
[1764598919121,7.1355,126.15,126.14,0.05753148]
[1764598922219,7.1355,126.15,126.14,3.19753148]
[1764598922824,7.1355,126.15,126.14,0.05753148]
[1764598925118,0.06083607,126.16,126.14,3.19753148]
[1764598930320,0.06083607,126.16,126.14,10.33363148]
[1764598930523,0.06083607,126.16,126.15,3.14]
[1764598935740,9.86631589,126.22,126.15,10.2754]
[1764598935935,2.73471589,126.23,126.16,3.14]
[1764598936140,7.45339148,126.24,126.17,3.14]
[1764598936342,4.71867559,126.24,126.17,3.14]
[1764598936535,7.1316,126.22,126.18,3.14]
[1764598936730,0.05127168,126.21,126.19,0.05434981]
[1764598936934,0.05127168,126.21,126.19,3.19434981]
[1764598951456,3.01368409,126.27,126.21,3.14]
[1764598951653,3.01368409,126.29,126.23,3.14]
[1764598951850,4.11042222,126.31,126.24,3.14]
[1764598952061,1.37851809,126.31,126.25,3.14]
[1764598952360,0.05468049,126.29,126.28,3.14]
[1764598952953,0.05468049,126.29,126.27,0.05642273]
[1764598953356,0.05468049,126.29,126.27,3.19642273]
[1764598957166,3.01368409,126.33,126.27,3.19642273]
[1764598957468,30.23368409,126.35,126.29,3.14]
[1764598957666,7.1249,126.34,126.29,3.14]
[1764598958157,0.05068474,126.33,126.31,3.14]
[1764598959270,0.05068474,126.33,126.3,3.19545242]
[1764598959766,3.01368409,126.32,126.3,3.19545242]
[1764598960864,3.01368409,126.32,126.3,0.05545242]
[1764598961560,10.13988409,126.32,126.3,0.05545242]
[1764598963072,0.05068474,126.33,126.3,3.19545242]
[1764598966571,137.9809,126.4,126.32,3.14]
[1764598966771,3.01368409,126.39,126.33,3.01368409]
[1764598967076,110.7809,126.4,126.34,3.14]
[1764598967468,0.05141782,126.38,126.36,3.19322064]
[1764598981685,7.17401782,126.38,126.36,3.19322064]
[1764598981887,0.05141782,126.38,126.36,3.19322064]
[1764598982886,7.1231,126.37,126.36,0.05322064]
[1764598983079,10.13678409,126.37,126.36,0.05322064]
[1764598983386,10.13678409,126.37,126.3,10.14018409]
[1764598983387,139.20458409,126.37,126.28,3.01368409]
[1764598983574,3.01368409,126.34,126.29,3.29]
[1764598984284,7.17847095,126.33,126.3,3.3417436]
[1764598984484,7.17847095,126.33,126.3,0.0517436]
[1764598985480,7.17847095,126.33,126.31,3.29]
[1764598985882,7.17847095,126.33,126.3,3.3417436]
[1764598989581,10.19215504,126.33,126.3,3.3417436]
[1764598990982,7.126,126.32,126.3,0.0517436]
[1764598991187,3.01368409,126.31,126.3,0.0517436]
[1764598993193,0.05277095,126.33,126.3,3.3417436]
[1764598996089,7.17817095,126.33,126.3,3.3417436]
[1764598996494,0.05277095,126.33,126.3,3.3417436]
[1764598998685,3.06645504,126.33,126.3,3.3417436]
[1764598999290,7.17817095,126.33,126.3,3.3417436]
[1764598999486,0.05277095,126.33,126.3,3.3417436]
[1764598999798,7.1259,126.32,126.3,3.3417436]
[1764599001099,3.01368409,126.32,126.27,7.35831831]
[1764599001401,3.01368409,126.3,126.27,3.08]
[1764599001601,3.01368409,126.3,126.26,3.08]
[1764599002293,7.18287108,126.29,126.27,3.13779738]
[1764599003697,11.88676251,126.29,126.27,3.13779738]
[1764599003889,7.18287108,126.29,126.27,3.13779738]
[1764599006005,0.05477108,126.29,126.27,3.13779738]
[1764599007702,0.05477108,126.29,126.27,10.49611569]
[1764599007898,0.05477108,126.29,126.27,3.13779738]
[1764599016510,0.05477108,126.29,126.27,0.05779738]
[1764599017214,110.8933,126.27,126.22,3.24]
[1764599018219,0.05569011,126.26,126.23,0.05904353]
[1764599018413,7.1304,126.25,126.23,3.29904353]
[1764599020206,7.1304,126.25,126.23,0.05904353]
[1764599020607,110.9276,126.23,126.17,7.35831831]
[1764599020811,110.9276,126.23,126.17,3.24]
[1764599021313,4.70389143,126.22,126.17,3.24]
[1764599021917,4.70389143,126.22,126.18,3.29153528]
[1764599021918,0.05289734,126.21,126.18,3.29153528]
[1764599022309,7.18549734,126.21,126.18,3.29153528]
[1764599027214,7.18549734,126.21,126.18,0.05153528]
[1764599027215,7.1332,126.2,126.18,0.05153528]
[1764599031321,0.05289734,126.21,126.18,0.05153528]
[1764599031721,7.1327,126.2,126.18,0.05153528]
[1764599032225,0.05289734,126.21,126.18,0.05153528]
[1764599033231,7.1333,126.19,126.18,0.05153528]
[1764599035331,7.1359,126.15,126.12,3.34]
[1764599035924,11.83879143,126.17,126.12,3.34]
[1764599036229,0.05330026,126.16,126.13,0.05595871]
[1764599036418,0.05330026,126.16,126.13,3.39595871]
[1764599036731,7.1356,126.15,126.13,3.39595871]
[1764599037630,0.05330026,126.16,126.13,3.39595871]
[1764599038229,0.05330026,126.16,126.13,0.05595871]
[1764599038430,111.04670026,126.16,126.13,0.05595871]
[1764599038732,111.04670026,126.16,126.13,3.39595871]
[1764599038733,7.18880026,126.16,126.13,3.39595871]
[1764599039128,0.05330026,126.16,126.13,3.39595871]
[1764599039829,7.1356,126.15,126.13,0.05595871]
[1764599046137,7.1356,126.15,126.13,3.39595871]
[1764599050441,0.05330026,126.16,126.13,3.39595871]
[1764599056355,7.18830026,126.16,126.13,3.39595871]
[1764599058258,0.05330026,126.16,126.13,3.39595871]
[1764599059453,0.05330026,126.16,126.15,10.4755]
[1764599060252,7.1332,126.2,126.16,3.16]
[1764599060458,27.22,126.22,126.17,3.16]
[1764599060459,7.1316,126.22,126.17,3.16]
[1764599061255,0.05726466,126.21,126.18,0.05363061]
[1764599061456,0.05726466,126.21,126.19,3.16]
[1764599068063,7.18976466,126.21,126.19,3.16]
[1764599068267,7.18976466,126.21,126.18,0.05363061]
[1764599068566,10.2031584,126.21,126.18,3.23363061]
[1764599074469,7.1328,126.2,126.18,3.23363061]
[1764599074665,3.0706584,126.21,126.18,0.05363061]
[1764599074971,10.14669374,126.19,126.18,0.05363061]
[1764599080876,3.01339374,126.2,126.18,3.23363061]
[1764599082074,7.18976466,126.21,126.18,3.23363061]
[1764599085480,10.14659374,126.2,126.18,0.05363061]
[1764599086786,7.1333,126.19,126.18,0.05363061]
[1764599093691,7.1355,126.15,126.13,7.35831831]
[1764599093888,7.1355,126.15,126.13,3.22]
[1764599094490,7.1348,126.17,126.13,3.22]
[1764599094687,0.05514802,126.16,126.14,3.27100544]
[1764599094891,0.05514802,126.16,126.15,3.22]
[1764599096388,0.05514802,126.16,126.15,10.57831831]
[1764599099894,0.05514802,126.16,126.15,12.15831831]
[1764599100201,3.01339374,126.2,126.15,19.29381831]
[1764599100202,5.76967026,126.2,126.15,19.29381831]
[1764599100495,7.1326,126.21,126.18,3.22]
[1764599100796,9.89310765,126.21,126.18,3.22]
[1764599100991,10.14649374,126.2,126.16,3.22]
[1764599101197,2.76050765,126.19,126.16,3.22]
[1764599101386,0.05343699,126.19,126.17,3.27739073]
[1764599103396,0.05343699,126.19,126.17,10.63570904]
[1764599103697,0.05343699,126.19,126.18,3.22]
[1764599105004,2.76180836,126.21,126.18,3.22]
[1764599105195,2.76180836,126.23,126.19,3.22]
[1764599105394,2.76180836,126.22,126.19,3.22]
[1764599105604,10.14389374,126.24,126.19,3.22]
[1764599105799,2.7634163,126.23,126.2,0.05516902]
[1764599106001,0.05536397,126.23,126.21,3.22]
[1764599113106,0.05536397,126.23,126.2,3.27516902]
[1764599113309,2.82547948,126.23,126.2,3.27516902]
[1764599115510,9.95657948,126.23,126.2,3.27516902]
[1764599116102,7.18646397,126.23,126.2,3.27516902]
[1764599117208,5.78356052,126.22,126.2,0.05516902]
[1764599117414,3.01339374,126.22,126.2,0.05516902]
[1764599117608,3.01339374,126.22,126.16,7.35831831]
[1764599117609,2.76959574,126.21,126.16,7.35831831]
[1764599117804,3.01339374,126.19,126.15,10.57831831]
[1764599118206,7.134,126.18,126.15,10.57831831]
[1764599118414,2.76958021,126.18,126.15,3.22]
[1764599118613,2.82520014,126.18,126.15,3.26996859]
[1764599119303,7.1345,126.17,126.15,3.26996859]
[1764599119807,7.1345,126.17,126.15,0.04996859]
[1764599120012,10.14789374,126.17,126.15,0.04996859]
[1764599120414,7.135,126.16,126.15,0.04996859]
[1764599127114,4.71405352,126.16,126.1,10.53831831]
[1764599127318,7.1369,126.13,126.1,3.18]
[1764599128419,7.19533164,126.13,126.1,3.23465906]
[1764599129423,0.05843164,126.13,126.1,3.23465906]
[1764599132616,110.9586,126.2,126.1,3.23465906]
[1764599132617,115.68025352,126.19,126.1,3.23465906]
[1764599132818,118.43685257,126.19,126.1,10.53831831]
[1764599133022,7.135,126.17,126.11,3.09]
[1764599133218,115.68025352,126.19,126.11,3.09]
[1764599133423,7.47066469,126.19,126.11,3.09]
[1764599133618,0.0587184,126.16,126.14,3.15094952]
[1764599136629,125.1878,126.24,126.14,3.15094952]
[1764599136630,110.9266,126.24,126.15,3.09]
[1764599136824,113.68523275,126.24,126.15,3.09]
[1764599137026,7.1322,126.21,126.15,3.09]
[1764599137530,0.0526911,126.19,126.18,3.09]
[1764599141536,0.0526911,126.19,126.17,3.14600666]
[1764599144934,0.0026911,126.19,126.17,3.14600666]
[1764599145139,138.097,126.27,126.19,3.09]
[1764599145334,2.74510235,126.26,126.19,3.09]
[1764599146034,0.06079724,126.24,126.21,3.1451912]
[1764599147442,7.1284,126.28,126.21,3.1451912]
[1764599147640,7.1284,126.28,126.21,3.09]
[1764599148439,0.05643381,126.26,126.24,3.09]
[1764599151540,2.74342832,126.32,126.24,3.09]
[1764599152454,0.05077047,126.29,126.28,3.25]
[1764599152649,0.05572791,126.3,126.28,3.25]
[1764599161653,7.1254,126.33,126.28,3.25]
[1764599161853,34.3047,126.35,126.29,3.25]
[1764599162154,7.1247,126.35,126.29,3.25]
[1764599162551,7.1247,126.35,126.3,3.25]
[1764599162757,7.1247,126.35,126.32,3.25]
[1764599163951,7.1248,126.34,126.31,3.30093431]
[1764599164156,7.1248,126.34,126.31,0.05093431]
[1764599164652,4.71405352,126.33,126.31,0.05093431]
[1764599165052,115.53755352,126.35,126.31,0.05093431]
[1764599165253,7.1259,126.32,126.31,0.05093431]
[1764599166946,7.1265,126.31,126.27,3.25]
[1764599167559,4.71405352,126.31,126.27,3.25]
[1764599167747,7.1277,126.29,126.27,3.25]
[1764599167948,4.76507646,126.29,126.27,0.06049698]
[1764599168158,117.22237646,126.29,126.23,3.25]
[1764599168455,4.71405352,126.26,126.21,3.25]
[1764599169060,0.05050715,126.25,126.22,3.31055098]
[1764599169259,0.05933206,126.25,126.22,3.31055098]
[1764599169460,7.18933206,126.25,126.22,3.31055098]
[1764599172054,11.84455352,126.24,126.22,0.06055098]
[1764599172456,7.1305,126.24,126.22,3.31055098]
[1764599172659,7.1305,126.24,126.22,0.06055098]
[1764599173255,11.84455352,126.24,126.22,0.06055098]
[1764599175960,110.9452,126.21,126.13,62.0]
[1764599176168,4.71405352,126.19,126.14,3.25]
[1764599176953,0.0513366,126.18,126.15,3.30285476]
[1764599177165,0.0572483,126.18,126.15,3.30285476]
[1764599177567,4.71405352,126.23,126.15,3.30285476]
[1764599177766,4.71405352,126.23,126.15,3.25]
[1764599178263,7.1322,126.21,126.15,3.25]
[1764599178461,0.05963686,126.19,126.17,0.05805865]
[1764599178660,0.05963686,126.19,126.17,3.30805865]
[1764599183373,7.1319,126.22,126.17,3.30805865]
[1764599183974,7.1319,126.22,126.18,3.16]
[1764599184367,0.05509752,126.21,126.18,3.16]
[1764599190181,0.05509752,126.21,126.18,10.2936]
[1764599190376,6.77,126.24,126.2,3.16]
[1764599190975,6.77,126.24,126.21,10.14525144]
[1764599191176,6.77,126.24,126.22,3.16]
[1764599191380,6.77,126.24,126.22,3.21477996]
[1764599191684,3.01335144,126.28,126.22,3.21477996]
[1764599192183,166.24177876,126.3,126.22,3.21477996]
[1764599192382,166.24177876,126.3,126.25,0.05483271]
[1764599192780,7.129,126.27,126.25,0.05483271]
[1764599193690,7.129,126.27,126.25,3.21483271]
[1764599193890,166.24177876,126.3,126.25,3.21483271]
[1764599193891,7.1282,126.28,126.25,3.21483271]
[1764599195397,37.32095144,126.3,126.25,3.21483271]
[1764599195596,30.19335144,126.3,126.25,3.21483271]
[1764599196398,7.1277,126.29,126.25,3.21483271]
[1764599198894,3.01335144,126.3,126.25,3.21483271]
[1764599199095,11.16162385,126.32,126.25,3.21483271]
[1764599199291,9.78335144,126.32,126.26,3.16]
[1764599199486,16.90935144,126.32,126.28,3.21342735]
[1764599199987,3.01335144,126.3,126.28,0.05342735]
[1764599201090,7.1276,126.29,126.28,0.05342735]
[1764599209301,7.1266,126.31,126.28,3.21342735]
[1764599210197,6.77,126.32,126.28,3.21342735]
[1764599212601,30.17335144,126.34,126.29,3.13]
[1764599212807,27.16,126.34,126.3,3.13]
[1764599212996,27.16,126.34,126.31,0.05635709]
[1764599213197,7.1249,126.34,126.31,0.05635709]
[1764599213903,3.01335144,126.33,126.31,0.05635709]
[1764599214508,7.1259,126.32,126.31,0.05635709]
[1764599215007,7.1257,126.33,126.31,0.05635709]
[1764599215207,3.01335144,126.35,126.31,0.05635709]
[1764599215404,112.18515402,126.37,126.31,3.18635709]
[1764599215605,3.01335144,126.36,126.31,3.18635709]
[1764599215909,7.1248,126.34,126.31,3.18635709]
[1764599219011,7.1243,126.35,126.31,3.18635709]
[1764599221002,7.1243,126.35,126.31,6.19970853]
[1764599221204,7.1243,126.35,126.32,3.13]
[1764599221410,7.1234,126.37,126.32,3.13]
[1764599222313,6.72,126.38,126.34,3.13]
[1764599222615,6.72,126.38,126.35,3.18260613]
[1764599225010,3.01335144,126.37,126.35,0.05260613]
[1764599226107,7.1237,126.36,126.35,0.05260613]
[1764599226308,3.06586411,126.37,126.3,3.13]
[1764599226508,10.13895144,126.33,126.27,10.2582]
[1764599226712,10.13895144,126.33,126.25,9.80707076]
[1764599226713,3.01335144,126.29,126.25,3.13]
[1764599227319,0.05573468,126.28,126.26,0.05749606]
[1764599227617,0.05573468,126.28,126.26,3.18749606]
[1764599228326,0.05573468,126.28,126.27,3.13]
[1764599231423,0.05573468,126.28,126.26,0.05749606]
[1764599231424,0.05573468,126.28,126.26,3.18749606]
[1764599232519,7.18393468,126.28,126.26,3.18749606]
[1764599235725,7.18393468,126.28,126.26,3.13477744]
[1764599237421,0.05573468,126.28,126.26,3.13477744]
[1764599237732,118.13800915,126.36,126.27,3.13]
[1764599237733,3.01335144,126.33,126.27,3.13]
[1764599238228,7.126,126.32,126.27,3.13]
[1764599238622,0.05271862,126.31,126.29,3.13]
[1764599245031,7.1245,126.35,126.29,10.48831831]
[1764599245333,2.7358165,126.37,126.31,3.32]
[1764599245527,36.89335144,126.38,126.31,3.32]
[1764599245929,39.62916794,126.38,126.31,3.32]
[1764599246129,36.89335144,126.38,126.33,0.05490998]
[1764599246332,7.1234,126.37,126.34,3.32]
[1764599249037,4.697489,126.45,126.36,3.4]
[1764599249240,4.697489,126.45,126.39,3.45338276]
[1764599249241,2.73580271,126.44,126.39,3.45338276]
[1764599249932,2.73580271,126.44,126.39,0.05338276]
[1764599250134,7.1204,126.42,126.39,0.05338276]
[1764599250333,118.18799171,126.43,126.39,0.05338276]
[1764599250740,7.43329171,126.43,126.39,3.45338276]
[1764599251038,2.73580271,126.44,126.39,3.45338276]
[1764599251234,118.17009171,126.45,126.39,3.45338276]
[1764599251741,2.73580271,126.45,126.39,3.45338276]
[1764599251934,4.697489,126.45,126.39,3.45338276]
[1764599252336,110.7438,126.44,126.39,0.05338276]
[1764599252539,4.697489,126.43,126.39,0.05338276]
[1764599253141,7.1203,126.42,126.39,0.05338276]
[1764599253646,7.1209,126.41,126.39,0.05338276]
[1764599259449,27.14,126.43,126.39,3.45338276]
[1764599261457,34.2598,126.43,126.39,3.45338276]
[1764599261846,6.7,126.44,126.39,3.45338276]
[1764599264558,13.8195,126.44,126.39,3.45338276]
[1764599267854,7.12,126.43,126.39,3.45338276]
[1764599268853,7.1206,126.42,126.39,0.05338276]
[1764599272757,7.1206,126.42,126.39,3.28338276]
[1764599273961,6.7,126.44,126.39,3.28338276]
[1764599273962,13.8197,126.44,126.39,3.28338276]
[1764599275458,13.8197,126.44,126.4,3.23]
[1764599277148,6.7,126.44,126.4,3.23]
[1764599277756,6.7,126.44,126.41,3.23]
[1764599279257,6.7,126.44,126.42,3.23]
[1764599279457,6.7,126.44,126.42,3.28648044]
[1764599280359,3.29,126.44,126.42,3.28648044]
[1764599280560,110.6935,126.5,126.42,3.28648044]
[1764599280862,110.6935,126.5,126.46,3.23]
[1764599281263,7.1171,126.48,126.46,3.23]
[1764599281462,115.38145067,126.51,126.46,3.23]
[1764599281664,118.10492828,126.51,126.46,3.23]
[1764599282263,115.38145067,126.51,126.46,3.23]
[1764599282462,27.12,126.52,126.46,3.23]
[1764599282663,2.72385565,126.53,126.48,3.28719522]
[1764599282865,118.07530632,126.54,126.48,3.28719522]
[1764599283266,4.69245067,126.5,126.48,0.05719522]
[1764599284165,11.80855067,126.5,126.48,0.05719522]
[1764599284561,7.1173,126.48,126.42,3.23]
[1764599284760,11.80975067,126.48,126.42,3.23]
[1764599285762,0.05119235,126.46,126.44,3.28079408]
[1764599293175,0.05119235,126.46,126.44,10.39989408]
[1764599293474,0.05119235,126.46,126.45,3.23]
[1764599294570,34.54738178,126.52,126.46,3.23]
[1764599294571,34.235,126.52,126.46,3.23]
[1764599295469,34.235,126.52,126.48,3.28938434]
[1764599295865,27.12,126.52,126.48,3.28938434]
[1764599296067,7.1139,126.54,126.48,3.28938434]
[1764599296271,2.73472428,126.56,126.48,3.28938434]
[1764599296578,4.69245067,126.56,126.51,0.05730253]
[1764599296782,7.42717495,126.56,126.51,0.05730253]
[1764599297170,7.42717495,126.56,126.51,3.28730253]
[1764599297482,4.69245067,126.56,126.51,3.28730253]
[1764599298275,4.69245067,126.56,126.51,0.05730253]
[1764599298677,7.1141,126.54,126.51,0.05730253]
[1764599299974,7.1141,126.54,126.51,3.28730253]
[1764599300280,7.1141,126.54,126.51,0.05730253]
[1764599303685,4.69245067,126.53,126.51,0.05730253]
[1764599304381,7.1147,126.52,126.51,0.05730253]
[1764599306483,10.11444996,126.52,126.51,0.05730253]
[1764599308079,7.1147,126.52,126.51,0.05730253]
[1764599310183,7.1147,126.52,126.51,3.41730253]
[1764599310378,7.1147,126.52,126.51,0.05730253]
[1764599313184,10.11444996,126.52,126.51,0.05730253]
[1764599313389,7.1162,126.5,126.46,3.36]
[1764599314281,7.1162,126.5,126.48,3.36]
[1764599314481,0.05688884,126.49,126.48,3.36]
[1764599318280,0.05688884,126.49,126.47,3.41209975]
[1764599319588,0.05688884,126.49,126.48,3.36]
[1764599319985,0.05688884,126.49,126.48,10.4769]
[1764599320394,0.05688884,126.49,126.48,3.36]
[1764599320587,0.05688884,126.49,126.47,3.41209975]
[1764599330393,0.05688884,126.49,126.48,3.19]
[1764599332601,0.05688884,126.49,126.48,10.54831831]
[1764599334203,0.05688884,126.49,126.48,3.19]
[1764599335092,0.05688884,126.49,126.48,10.54831831]
[1764599336589,2.75757138,126.52,126.48,10.54831831]
[1764599336590,7.1149,126.52,126.48,10.54831831]
[1764599337494,7.1149,126.52,126.49,3.19]